Cogmind - Beta 10.1 --- EXPLORER MODE // 2020.10.21 @ 19:20:06 Player: Veritas Result: Self-destructed Performance ------------- Evolutions (6) 3000 Regions Visited (9) 1800 Robots Destroyed (105) 525 Value Destroyed (3826) 3826 Prototype IDs (12) 240 Alien Tech Used (0) 0 Bonus (460) 460 TOTAL SCORE: 9851 Bonus ------- High Alert Combat Kills 211 Follower Combat Kills 49 Entered Garrisons 200 Cogmind --------- Core Integrity 1115/1150 Matter 450/450 Energy 237/540 System Corruption 1% Temperature Cool (242) Movement Hovering (52) Location -4/Extension Parts ------- > --- POWER (2) -------- Micro Fission Core Light Antimatter Reactor > --- PROPULSION (5) --- Gravmag Array Gravmag Array Antigrav System > --- UTILITY (9) ------ Cryofiber Web Compact Battery Compact Matter Pod Gravity Neutralizing Apparatus Improved Targeting Computer Improved Transmission Jammer Hacking Suite Advanced Hacking Suite > --- WEAPON (4) ------- Arc Projector Disruptor Cannon KE Penetrator Improved Datajack > --- INVENTORY (4) ---- Antigrav System Improved Component Analysis Suite System Restoration Module Recalibrator Peak State ------------ > --- POWER ------------ Micro Fission Core Light Antimatter Reactor > --- PROPULSION ------- Gravmag Array Gravmag Array Antigrav System > --- UTILITY ---------- Cryofiber Web Improved Heat Sink High-capacity Battery Compact Matter Pod Gravity Neutralizing Apparatus Improved Targeting Computer Improved Transmission Jammer Hacking Suite Advanced Hacking Suite > --- WEAPON ----------- Arc Projector Disruptor Cannon KE Penetrator Improved Plasma Cutter > --- INVENTORY -------- Improved Component Analysis Suite System Restoration Module Improved Datajack [Rating: 94] Favorites ----------- Power Light Ion Engine Engine Light Ion Engine Power Core Light Nuclear Core Reactor Light Antimatter Reactor Propulsion Improved Hover Unit Leg Aluminum Leg Hover Unit Improved Hover Unit Utility Improved Heat Sink Device Improved Heat Sink Storage High-capacity Battery Processor Improved Targeting Computer Hackware Hacking Suite Weapon Improved Light Cannon Energy Gun Arc Projector Energy Cannon Disruptor Cannon Ballistic Gun KE Penetrator Ballistic Cannon Improved Light Cannon Launcher Shock Bomb Launcher Special Weapon Improved Plasma Cutter Piercing Weapon Spear Special Melee Weapon Improved Datajack Build | -11 -10 -9 -8 -7 -6 -6 -5 -4 -4 ------- Run | Scr Mat Mat Mat Fac Fac Gar Fac Fac Ext Slots Evolved 13 | . 1 2 2 2 2 . 2 2 . Power 1 | . . 1 . . . . . . . Propulsion 3 | . . 1 . 1 . . 1 . . Utility 7 | . 1 . 2 1 1 . 1 1 . Weapon 2 | . . . . . 1 . . 1 . Parts Attached 110 | 5 7 12 28 13 8 9 20 6 2 Power 16 | 1 . 4 5 2 . 2 2 . . Engine 9 | 1 . 3 2 1 . 2 . . . Core 6 | . . 1 3 1 . . 1 . . Reactor 1 | . . . . . . . 1 . . Propulsion 22 | . 4 4 6 1 . . 5 1 1 Treads . | . . . . . . . . . . Leg 2 | . 2 . . . . . . . . Wheel . | . . . . . . . . . . Hover 20 | . 2 4 6 1 . . 5 1 1 Flight . | . . . . . . . . . . Utility 33 | 2 1 . 10 5 2 3 8 1 1 Device 17 | 1 . . 6 2 2 1 4 1 . Storage 8 | . . . 1 1 . 2 3 . 1 Processor 5 | 1 1 . 2 1 . . . . . Hackware 3 | . . . 1 1 . . 1 . . Protection . | . . . . . . . . . . Artifact . | . . . . . . . . . . Weapon 39 | 2 2 4 7 5 6 4 5 4 . Energy Gun 12 | 1 1 3 1 3 2 . 1 . . Energy Cannon 3 | . . . 1 . . . 1 1 . Ballistic Gun 4 | 1 . . 1 . . . 2 . . Ballistic Cannon 6 | . 1 1 2 . 1 1 . . . Launcher 7 | . . . 2 1 3 1 . . . Special Weapon 1 | . . . . . . . . 1 . Impact Weapon . | . . . . . . . . . . Slashing Weapon . | . . . . . . . . . . Piercing Weapon 1 | . . . . 1 . . . . . Special Melee Weapon 5 | . . . . . . 2 1 2 . Unidentified Prototypes 6 | . . . 2 2 2 . . . . Parts Lost 6 | . . 1 . . . 4 . . 1 Power 1 | . . . . . . 1 . . . Propulsion 2 | . . 1 . . . 1 . . . Utility 3 | . . . . . . 2 . . 1 Weapon . | . . . . . . . . . . Highest Loss Streak 2 | . . 1 . . . 2 . . 1 Average Slot Usage (%) 96 | . 92 99 99 100 100 96 92 90 89 Engine 7 | . 12 17 5 6 6 4 2 . . Core 5 | . . 2 10 7 6 5 4 5 5 Hover 23 | . 12 30 25 28 25 24 21 15 15 Device 17 | . 12 10 21 17 18 20 21 20 19 Storage 4 | . . . 3 9 6 5 9 10 10 Processor 11 | . 22 20 10 7 6 6 5 5 5 Hackware 5 | . . . 5 8 12 9 6 10 10 Energy Gun 6 | . 12 10 1 10 12 8 5 5 5 Energy Cannon 2 | . . . 6 . . . 4 5 5 Ballistic Gun 1 | . 6 . . . . . 3 5 5 Ballistic Cannon 5 | . 6 9 7 2 4 6 . . . Special Melee Weapon 1 | . . . . . . 2 1 4 5 Naked Turns . | . . . . . . . . . . Heaviest Build 75 | 9 13 18 26 34 40 40 75 44 44 Greatest Support 86 | 3 20 24 33 44 44 44 74 86 84 Greatest Overweight (x) 2 | 2 2 . . . . . 1 . . Average Overweight (x) . | 1 . . . . . . . . . Largest Inventory Capacity 12 | 4 4 4 4 4 4 4 12 4 4 Average Capacity 4 | 4 4 4 4 4 4 4 7 4 4 Most Carried 10 | 4 4 4 4 4 4 4 10 3 4 Average Carried 3 | 2 3 3 3 3 2 3 4 2 3 Final Capacity 4 | 4 4 4 4 4 4 4 4 4 4 Final Carried 4 | 4 4 4 4 4 3 3 4 3 4 Class Distribution -------------------- 78% | Hacker-Mutant 21% | Hacker-Gunner Dominant Class ---------------- Hacker-Mutant | -10/Materials Hacker-Mutant | -9/Materials Hacker-Mutant | -8/Materials Hacker-Mutant | -7/Factory Hacker-Mutant | -6/Factory Hacker-Mutant | -6/Garrison Hacker-Gunner | -5/Factory Hacker-Gunner | -4/Factory Hacker-Mutant | -4/Extension Resources | -11 -10 -9 -8 -7 -6 -6 -5 -4 -4 ----------- Run | Scr Mat Mat Mat Fac Fac Gar Fac Fac Ext Matter Collected 2204 | 250 14 387 436 218 . 385 299 140 75 Remotely . | . . . . . . . . . . Salvage Created 3688 | . 14 844 941 126 . 737 387 180 459 Parts 221 | . 4 66 60 5 . 32 18 13 23 Haulers Intercepted 1 | . . . 1 . . . . . . Recyclers Shooed . | . . . . . . . . . . Parts Field Recycled . | . . . . . . . . . . Retrieved Matter . | . . . . . . . . . . Parts Self-Destructed . | . . . . . . . . . . Prevented . | . . . . . . . . . . Kills | -11 -10 -9 -8 -7 -6 -6 -5 -4 -4 ------- Run | Scr Mat Mat Mat Fac Fac Gar Fac Fac Ext Combat Hostiles Destroyed 80 | . . 23 22 4 . 19 4 4 4 Guns 29 | . . 12 2 2 . 5 2 3 3 Cannons 40 | . . 10 17 2 . 7 2 1 1 AOE 10 | . . 1 3 . . 6 . . . Classes Destroyed 14 | . 1 7 4 . . 2 . . . Worker 6 | . . . 6 . . . . . . Builder 2 | . . 1 . . . . . . 1 Hauler 1 | . . . 1 . . . . . . Recycler 4 | . . 1 1 . . . . . 2 Operator 2 | . . 2 . . . . . . . Watcher 10 | . 1 2 5 . . . 2 . . Swarmer 31 | . . 5 11 2 . 7 . 3 3 Grunt 30 | . . 12 7 2 . 6 3 . . Brawler 3 | . . . 1 . . 2 . . . Duelist 1 | . . 1 . . . . . . . Sentry 10 | . . 5 2 . . 2 . 1 . Hunter 2 | . . . 1 . . . 1 . . Programmer 2 | . . . . . . 1 . . 1 Behemoth 1 | . . . . . . 1 . . . Best Kill Streak 10 | . 1 6 10 2 . 8 3 4 4 Combat Bots Only 8 | . . 5 5 2 . 8 3 4 3 Max Kills in Single Turn 4 | . 1 2 4 1 . 4 1 1 1 Gunslinging . | . . . . . . . . . . Exploded 3 | . . 1 2 . . 3 . . . Melee . | . . . . . . . . . . Uniques/NPCs Destroyed . | . . . . . . . . . . Combat | -11 -10 -9 -8 -7 -6 -6 -5 -4 -4 -------- Run | Scr Mat Mat Mat Fac Fac Gar Fac Fac Ext Damage Taken 1852 | . . 318 238 44 . 664 124 219 245 Core 307 | . . 88 60 7 . 117 . 14 21 Absorbed by Shields 45 | . . . . . . 45 . . . Core Remaining (%) 93 | 100 100 78 89 99 . 86 100 . . Volleys Fired 205 | . 3 53 57 9 . 44 14 10 15 Largest 3 | . 2 2 2 2 . 3 3 3 3 Hottest 169 | . 84 102 102 141 . 156 169 169 169 Shots Fired 444 | . 6 103 100 14 . 115 42 25 39 Gun 213 | . 5 50 3 10 . 67 28 20 30 Cannon 223 | . 1 53 96 4 . 41 14 5 9 Launcher 8 | . . . 1 . . 7 . . . Special . | . . . . . . . . . . Kinetic 193 | . 3 53 53 4 . 41 14 10 15 Thermal 89 | . 2 30 3 10 . 44 . . . Explosive 1 | . . . 1 . . . . . . Electromagnetic 161 | . 1 20 43 . . 30 28 15 24 Robot Hit Streak 58 | . 3 19 23 15 . 25 45 58 8 Robot Miss Streak 3 | . 2 3 2 1 . 1 . 1 2 Penetration Max 1 | . . . . . . . . . 1 Secondary Targets . | . . . . . . . . . . Shots Hit Robots 343 | . 3 79 72 14 . 83 40 20 32 Core Hits 176 | . 2 34 46 7 . 39 18 10 20 Critical Hits 2 | . . . 1 . . . . . 1 Critical Kills . | . . . . . . . . . . Critical Parts Destroyed 2 | . . . 1 . . . . . 1 Melee Attacks 4 | . . . . . . . 1 . 3 Impact . | . . . . . . . . . . Slashing . | . . . . . . . . . . Piercing . | . . . . . . . . . . Sneak Attacks 1 | . . . . . . . 1 . . Combat Hostiles 1 | . . . . . . . 1 . . Follow-up Attacks . | . . . . . . . . . . Damage Inflicted 8508 | . 31 1585 2584 279 . 2510 665 310 544 Guns 2979 | . 31 663 35 190 . 945 410 235 470 Cannons 4076 | . . 808 1791 89 . 984 255 75 74 Explosions 1453 | . . 114 758 . . 581 . . . Melee . | . . . . . . . . . . Ramming . | . . . . . . . . . . Kinetic 3281 | . 7 808 668 89 . 984 233 138 354 Thermal 2347 | . 24 535 566 190 . 1032 . . . Explosive 227 | . . . 227 . . . . . . Electromagnetic 2653 | . . 242 1123 . . 494 432 172 190 Impact . | . . . . . . . . . . Slashing . | . . . . . . . . . . Piercing . | . . . . . . . . . . Highest Corruption 1 | . . . . . . 1 . . 1 Average Corruption 1 | . . . . . . 1 . . 1 Corruption Purged . | . . . . . . . . . . Effects 1 | . . . . . . 1 . . . Targeting Errors 1 | . . . . . . 1 . . . Overload Shots . | . . . . . . . . . . Overflow Damage 159 | . . 2 109 . . 48 . . . Projectiles 123 | . . 2 73 . . 48 . . . Explosions 36 | . . . 36 . . . . . . Melee . | . . . . . . . . . . Knockbacks 11 | . . 7 1 . . 3 . . . Impact . | . . . . . . . . . . Kinetic 10 | . . 7 1 . . 2 . . . Secondary 1 | . . . . . . 1 . . . Self-Inflicted Damage . | . . . . . . . . . . Shots . | . . . . . . . . . . Rammed . | . . . . . . . . . . Targets Rammed . | . . . . . . . . . . Kicked . | . . . . . . . . . . Crushed . | . . . . . . . . . . Highest Temperature 375 | . 40 375 101 173 . 214 70 161 242 Average Temperature 117 | . 18 148 50 88 . 84 30 57 67 Received Heat Transfer 586 | . . 210 81 18 . 202 39 27 9 Effects 9 | . . 9 . . . . . . . Shutdowns 1 | . . 1 . . . . . . . Energy Bleed 2 | . . 2 . . . . . . . Interference 5 | . . 5 . . . . . . . Damage (minor) 1 | . . 1 . . . . . . . Siege Activations . | . . . . . . . . . . Robots Corrupted . | . . . . . . . . . . Combat Hostiles . | . . . . . . . . . . Parts Fried 10 | . . 1 3 . . . 3 3 . Impact Corruptions . | . . . . . . . . . . Robots Melted 1 | . . . . . . 1 . . . Combat Hostiles 1 | . . . . . . 1 . . . Parts Melted 4 | . . . 1 3 . . . . . Heat Transferred 3579 | . 74 1025 524 385 . 1571 . . . Parts Sabotaged . | . . . . . . . . . . Parts Stolen . | . . . . . . . . . . Parts Stripped . | . . . . . . . . . . Power Chain Reactions 9 | . . 1 4 . . 4 . . . Missiles Intercepted . | . . . . . . . . . . Alert | -11 -10 -9 -8 -7 -6 -6 -5 -4 -4 ------- Run | Scr Mat Mat Mat Fac Fac Gar Fac Fac Ext Peak Influence 774 | . 25 441 502 284 102 774 425 168 137 Initial 294 | . . 7 80 133 102 54 294 45 60 Average 231 | . 12 195 262 187 102 496 317 77 54 Maximum Alert Level 3 | . . 2 2 1 . 3 2 . . Low Security (%) 50 | 100 100 50 31 88 100 19 12 100 100 Level 1 32 | . . 41 55 11 . 15 61 . . Level 2 12 | . . 8 12 . . 33 25 . . Level 3 4 | . . . . . . 31 . . . Level 4 . | . . . . . . . . . . Level 5 . | . . . . . . . . . . High Security . | . . . . . . . . . . Max Security . | . . . . . . . . . . Squads Dispatched 3 | . . 1 1 1 . . . . . Investigation 1 | . . . . 1 . . . . . Extermination . | . . . . . . . . . . Reinforcement 2 | . . 1 1 . . . . . . Assault . | . . . . . . . . . . Garrison . | . . . . . . . . . . Intercept . | . . . . . . . . . . Construction Impeded 1 | . . . 1 . . . . . . Haulers Reinforced . | . . . . . . . . . . Stealth | -11 -10 -9 -8 -7 -6 -6 -5 -4 -4 --------- Run | Scr Mat Mat Mat Fac Fac Gar Fac Fac Ext Distress Signals 7 | . . 3 3 . . . 1 . . Communications Jammed 43 | . . . . . . . 43 . . Distress Signals 43 | . . . . . . . 43 . . Times Spotted 111 | . 2 30 33 5 . 23 6 4 8 Peak Tracking Total 8 | . 1 4 3 3 . 8 3 3 4 Tactical Retreats 8 | . . 1 3 . . 4 . . . Traps | -11 -10 -9 -8 -7 -6 -6 -5 -4 -4 ------- Run | Scr Mat Mat Mat Fac Fac Gar Fac Fac Ext Traps Triggered 7 | . . 1 . . . 3 1 1 1 Indirectly . | . . . . . . . . . . Trap Hack Attempts 47 | . . . . . . 16 . 5 26 Triggered . | . . . . . . . . . . Disarmed 15 | . 11 . 4 . . . . . . Reprogrammed 27 | . 6 6 4 . . 2 . 1 8 Reused 2 | . 2 . . . . . . . . Traps Extracted . | . . . . . . . . . . Installed . | . . . . . . . . . . Triggered 2 | . 2 . . . . . . . . Machines | -11 -10 -9 -8 -7 -6 -6 -5 -4 -4 ---------- Run | Scr Mat Mat Mat Fac Fac Gar Fac Fac Ext Machines Disabled 8 | . . . 2 . . 3 2 . 1 Max in Single Turn 1 | . . . 1 . . 1 1 . 1 Garrison Access 2 | . . . . 1 . . 1 . . Garrison Relay 3 | . . . . . . 3 . . . Machines Sabotaged . | . . . . . . . . . . Garrisons Compromised . | . . . . . . . . . . Overloaded Fab Kills . | . . . . . . . . . . Fab Network Shutdowns . | . . . . . . . . . . Hacking | -11 -10 -9 -8 -7 -6 -6 -5 -4 -4 --------- Run | Scr Mat Mat Mat Fac Fac Gar Fac Fac Ext Machines Accessed 28 | . 2 7 7 4 1 . 3 1 3 Terminals 19 | . 2 5 7 1 . . . 1 3 Fabricators 2 | . . . . 1 . . 1 . . Repair Stations 1 | . . . . . . . 1 . . Recycling Units . | . . . . . . . . . . Scanalyzers 3 | . . 2 . 1 . . . . . Garrison Access 3 | . . . . 1 1 . 1 . . Total Hacks 69 | . 8 17 21 9 1 . 6 1 6 Successful 54 | . 6 11 18 7 1 . 6 1 4 Failed 15 | . 2 6 3 2 . . . . 2 Catastrophic . | . . . . . . . . . . Database Lockouts . | . . . . . . . . . . Manual 22 | . . 10 9 3 . . . . . Terminals 51 | . 8 13 21 2 . . . 1 6 Fabricators 3 | . . . . 1 . . 2 . . Repair Stations 2 | . . . . . . . 2 . . Recycling Units . | . . . . . . . . . . Scanalyzers 6 | . . 4 . 2 . . . . . Garrison Access 7 | . . . . 4 1 . 2 . . Terminal Hacks 38 | . 6 7 18 2 . . . 1 4 Record 2 | . . . 2 . . . . . . Robot Analysis 1 | . 1 . . . . . . . . Prototype ID Bank 2 | . . . 1 1 . . . . . Open Door 2 | . . . . . . . . 1 1 Alert Level 2 | . . 1 1 . . . . . . Unreport Threat 3 | . . 1 1 . . . . . 1 Locate Traps 8 | . 2 2 3 . . . . . 1 Disarm Traps 3 | . 2 . 1 . . . . . . Reprogram Traps 4 | . 1 1 2 . . . . . . Dispatch Records 1 | . . 1 . . . . . . . Surveillance Status 1 | . . . 1 . . . . . . Transport Status 1 | . . . 1 . . . . . . Investigation Status 1 | . . . 1 . . . . . . Reinforcement Status 1 | . . . 1 . . . . . . Registered Components 1 | . . . 1 . . . . . . Zone Layout 5 | . . 1 2 1 . . . . 1 Fabricator Hacks 2 | . . . . . . . 2 . . Load Schematic 1 | . . . . . . . 1 . . Build 1 | . . . . . . . 1 . . Repair Station Hacks 2 | . . . . . . . 2 . . Scan Component 1 | . . . . . . . 1 . . Repair 1 | . . . . . . . 1 . . Recycling Unit Hacks . | . . . . . . . . . . Scanalyzer 4 | . . 4 . . . . . . . Insert Component 2 | . . 2 . . . . . . . Analyze 2 | . . 2 . . . . . . . Garrison Access Hacks 6 | . . . . 3 1 . 2 . . Unlock Access 2 | . . . . 1 1 . . . . Seal Access 2 | . . . . 1 . . 1 . . Coupler Status 2 | . . . . 1 . . 1 . . Unauthorized Hacks 2 | . . . . 2 . . . . . Terminals . | . . . . . . . . . . Fabricators 1 | . . . . 1 . . . . . Download 1 | . . . . 1 . . . . . Repair Stations . | . . . . . . . . . . Recycling Units . | . . . . . . . . . . Scanalyzers . | . . . . . . . . . . Garrison Access 1 | . . . . 1 . . . . . Watchers 1 | . . . . 1 . . . . . Data Cores Recovered 1 | . . 1 . . . . . . . Used . | . . . . . . . . . . Hacking Detections 19 | . 1 6 5 2 . . 2 1 2 Full Trace Events . | . . . . . . . . . . Feedback Events . | . . . . . . . . . . Feedback Blocked . | . . . . . . . . . . Robot Schematics Acquired 1 | . . . . 1 . . . . . Robots Built 3 | . . . . . . . 3 . . Matter 252 | . . . . . . . 252 . . Time 134 | . . . . . . . 134 . . Total Robot Build Rating 12 | . . . . . . . 12 . . Part Schematics Acquired 2 | . . 2 . . . . . . . Parts Built . | . . . . . . . . . . Matter . | . . . . . . . . . . Time . | . . . . . . . . . . Total Part Build Rating . | . . . . . . . . . . Parts Repaired 1 | . . . . . . . 1 . . Time 38 | . . . . . . . 38 . . Parts Recycled . | . . . . . . . . . . Recycled Matter . | . . . . . . . . . . Retrieved Matter . | . . . . . . . . . . Retrieved Components . | . . . . . . . . . . Parts Scanalyzed 2 | . . 2 . . . . . . . Part Schematics Acquired 2 | . . 2 . . . . . . . Parts Damaged . | . . . . . . . . . . Bothacking | -11 -10 -9 -8 -7 -6 -6 -5 -4 -4 ------------ Run | Scr Mat Mat Mat Fac Fac Gar Fac Fac Ext Used RIF Installer . | . . . . . . . . . . Robots Hacked 1 | . . . . . . . . . 1 Non-combat . | . . . . . . . . . . Combat 1 | . . . . . . . . . 1 Robot Hacks Applied 1 | . . . . . . . . . 1 parse_system 1 | . . . . . . . . . 1 Relay Couplers Released 11 | . . . . . . 11 . . . Machine Destruction 11 | . . . . . . 11 . . . Robots Rewired . | . . . . . . . . . . Allies Hacked . | . . . . . . . . . . Hacks Repelled . | . . . . . . . . . . Allies | -11 -10 -9 -8 -7 -6 -6 -5 -4 -4 -------- Run | Scr Mat Mat Mat Fac Fac Gar Fac Fac Ext Total Allies 4 | . . . . . . . 3 . 1 Largest Group 3 | . . . . . . . 3 . 1 Highest-Rated Group 60 | . . . . . . . 60 . 29 Highest-Rated Ally 29 | . . . . . . . 20 . 29 Total Orders 2 | . . . . . . . 2 . . GUARD 2 | . . . . . . . 2 . . Ally Attacks 11 | . . . . . . . 11 . . Total Damage 409 | . . . . . . . 409 . . Kills 1 | . . . . . . . 1 . . Allies Corrupted . | . . . . . . . . . . Allies Melted . | . . . . . . . . . . Intel | -11 -10 -9 -8 -7 -6 -6 -5 -4 -4 ------- Run | Scr Mat Mat Mat Fac Fac Gar Fac Fac Ext Robot Analysis Total 1 | . 1 . . . . . . . . Derelict Logs Recovered . | . . . . . . . . . . Drone Launches . | . . . . . . . . . . Drone Recoveries . | . . . . . . . . . . Exploration | -11 -10 -9 -8 -7 -6 -6 -5 -4 -4 ------------- Run | Scr Mat Mat Mat Fac Fac Gar Fac Fac Ext Turns Passed 3135 | 77 179 764 611 228 37 398 459 131 251 Spaces Moved 3388 | 50 203 798 723 354 56 470 410 151 173 Core 69 | 50 19 . . . . . . . . Treads . | . . . . . . . . . . Legs 34 | . 34 . . . . . . . . Wheels . | . . . . . . . . . . Hover 3285 | . 150 798 723 354 56 470 410 151 173 Flight . | . . . . . . . . . . Fastest Speed 34 | 50 56 52 42 38 38 38 34 50 52 Average Speed 50 | 128 75 52 49 38 38 38 50 51 52 Slowest Speed 150 | 150 150 52 52 38 38 42 102 52 52 Overloaded Moves . | . . . . . . . . . . Propulsion Burnouts . | . . . . . . . . . . Robots Hopped . | . . . . . . . . . . Cave-ins Triggered . | . . . . . . . . . . Exploration Rate (%) 26 | 4 26 69 57 8 2 52 11 5 30 Regions Visited 9 Branch Regions 1 Pre-discovered Areas . | . . . . . . . . . . Known Exits Taken 8 | 1 1 1 1 1 1 . 1 1 . Unknown Exits Taken . | . . . . . . . . . . Scrap Searched . | . . . . . . . . . . Spaces Dug . | . . . . . . . . . . Terrain Destroyed 53 | . . 6 28 . . 18 1 . . Melee . | . . . . . . . . . . Projectile 8 | . . 3 . . . 4 1 . . AOE 45 | . . 3 28 . . 14 . . . Terrain Rammed . | . . . . . . . . . . Walls Destroyed . | . . . . . . . . . . Machines Disabled . | . . . . . . . . . . Actions | -11 -10 -9 -8 -7 -6 -6 -5 -4 -4 --------- Run | Scr Mat Mat Mat Fac Fac Gar Fac Fac Ext Total 4410 | 63 222 1044 873 431 71 593 629 183 301 Wait 505 | . . 169 38 37 . 27 151 6 77 Move 3380 | 49 202 797 722 353 56 469 409 150 173 Hop . | . . . . . . . . . . Pick Up 61 | 9 5 6 9 10 3 4 12 1 2 Fast Attach 34 | . 3 6 6 2 1 . 13 3 . Attach 30 | 5 2 5 3 3 3 4 2 2 1 Detach 4 | . . . . . 1 1 1 1 . Swap 47 | . 2 1 19 8 4 5 6 1 1 Drop 70 | . 5 7 19 9 3 2 19 4 2 Fire 205 | . 3 53 57 9 . 44 14 10 15 Melee 4 | . . . . . . . 1 . 3 Ram . | . . . . . . . . . . Kick . | . . . . . . . . . . Crush . | . . . . . . . . . . Escape Stasis 22 | . . . . . . 21 . . 1 Rewire 1 | . . . . . . . 1 . . Trap 47 | . . . . . . 16 . 5 26 Miscellaneous . | . . . . . . . . . . Route ------- -11/Scrapyard -10/Materials -9/Materials (discovered 4 exits: *Mat x2 / *Min / *Sto) -8/Materials -7/Factory -6/Factory (discovered 2 exits: *Low / Gar) -6/Garrison (discovered 2 exits: *Fac x2) -5/Factory -4/Factory -4/Extension History --------- Turn | Location | Event 6 | -11/Scrapyard | Identified exit to Materials 6 | -11/Scrapyard | Discovered exit to Materials (range 15) 78 | -11/Scrapyard | Entered Materials 78 | -10/Materials | Evolved 1 slot: Utility x1 205 | -10/Materials | Identified exit to Materials 205 | -10/Materials | Discovered exit to Materials (range 3) 257 | -10/Materials | Entered another Materials area 257 | -9/Materials | Evolved 2 slots: Power x1, Propulsion x1 259 | -9/Materials | Identified exit to Storage 259 | -9/Materials | Discovered exit to Storage (range 7) 317 | -9/Materials | Build established: Hacker-Mutant 658 | -9/Materials | Identified exit to Materials 658 | -9/Materials | Discovered exit to Materials (range 16) 788 | -9/Materials | Identified exit to Mines 788 | -9/Materials | Discovered exit to Mines (range 10) 1003 | -9/Materials | Discovered exit to Materials (range 10) 1021 | -9/Materials | Entered another Materials area 1021 | -8/Materials | Evolved 2 slots: Utility x2 1599 | -8/Materials | Identified exit to Factory 1599 | -8/Materials | Discovered exit to Factory (range 15) 1632 | -8/Materials | Entered Factory 1632 | -7/Factory | Evolved 2 slots: Propulsion x1, Utility x1 1787 | -7/Factory | Identified exit to Garrison 1821 | -7/Factory | Identified exit to Factory 1821 | -7/Factory | Discovered exit to Factory (range 12) 1860 | -7/Factory | Entered another Factory area 1860 | -6/Factory | Evolved 2 slots: Utility x1, Weapon x1 1869 | -6/Factory | Found Prototype Launcher 1871 | -6/Factory | Identified Rocket Array 1896 | -6/Factory | Identified exit to Lower Caves 1896 | -6/Factory | Discovered exit to Lower Caves (range 10) 1897 | -6/Factory | Identified exit to Garrison 1897 | -6/Factory | Entered Garrison 1922 | -6/Garrison | Triggered checkpoint 1941 | -6/Garrison | Garrison Relay disabled 1993 | -6/Garrison | Spotted B-75 Beast 2020 | -6/Garrison | Destroyed B-75 Beast 2035 | -6/Garrison | Garrison Relay disabled 2056 | -6/Garrison | Triggered checkpoint 2098 | -6/Garrison | Triggered checkpoint 2151 | -6/Garrison | Destroyed 8 combat bots 2168 | -6/Garrison | Triggered checkpoint 2212 | -6/Garrison | Garrison Relay disabled 2228 | -6/Garrison | Identified exit to Factory 2228 | -6/Garrison | Discovered exit to Factory (range 10) 2256 | -6/Garrison | Discovered exit to Factory (range 9) 2295 | -6/Garrison | Entered Factory 2295 | -5/Factory | Evolved 2 slots: Propulsion x1, Utility x1 2503 | -5/Factory | Fabricated B-48 Gladiator (x3) 2654 | -5/Factory | Repaired Cryofiber Web 2720 | -5/Factory | Identified exit to Factory 2720 | -5/Factory | Discovered exit to Factory (range 8) 2754 | -5/Factory | Entered another Factory area 2754 | -4/Factory | Evolved 2 slots: Utility x1, Weapon x1 2882 | -4/Factory | Identified exit to Extension 2882 | -4/Factory | Discovered exit to Extension (range 9) 2885 | -4/Factory | Entered Extension 2916 | -4/Extension | Rescued a captive Derelict 3098 | -4/Extension | P-70 Sage assimilated allied EE-01C(b) 3128 | -4/Extension | Spotted B-86 Titan 3136 | -4/Extension | Self-destructed Last Messages --------------- 03124_ Slug penetrates R-10 Processor. 03124_ R-10 Processor destroyed. 03127_ Acquired 18 matter. 03127_ R-10 Processor collects Imp. Target Analyzer. 03129_ R-10 Processor collects Imp. Ion Engine. 03129_ R-10 Processor shuts down. 03129_ Slug penetrates R-10 Processor. 03129_ R-10 Processor destroyed. 03132_ Acquired 4 matter. 03133_ C-30 ARC bursts open, deploying its payload. 03133_ H-77 Assassin unfolds itself. 03133_ Slug penetrates Wall. 03133_ Slug penetrates Machine. 03133_ Slug penetrates Wall. 03133_ Machine disabled. 03134_ Acquired 4 matter. 03134_ Machine disabled. 03135_ Penetrated by Slug. 03135_ Slug penetrates EE-01C(b). 03136_ R-10 Processor collects Field Recycling Unit. Map ----- +----------------------------------------------------+ | ????# #?????????????????????????????? | | ##### #?????????????????????????????? | | #####?????????????????????????? | | #?????????????????????????? | | #?????????????????????????? | | #?????????????????????????? | | ####??????????????????????? | | ######## #??????????????????????? | | ######## #??????????????????????? | | ## #??????????????????????? | | ## #??????????????????????? | | ##### ## ########R#??????????????????????? | | #???# ## #??????# #??????????????????????? | | #???# #??????# #??????????????????????? | | #######???######+#??????# #??????????????????????? | | ???????????????# ??????# #??????????????????????? | | ???????????????# ??????# #??????????????????????? | | ???????????????# ?????# #??????????????????????? | | ???????????????# ?????# #??????????????????????? | | ???????????????# #????#%#??????????????????????? | | ???????????????# #????#=#??????????????????????? | | ???????????????# #????#%#??????????????????????? | | ???????????????? #????#=#??????????????????????? | | ???????????????? #????#=#??????????????????????? | | ????????????????####????#b#??????????????????????? | | ????????????????????????#@#??????????????????????? | | ????????????????????????#*#??????????????????????? | | ????????????????????????#*#??????????????????????? | | ????????????????????????"! ??????????????????????? | | ????????????????????????hh"??????????????????????? | | ???????????????????????? =R??????????????????????? | | ???????????????????????? ??????????????????????? | | ??????????????????????? ?????????????????????? | | ??????????????????????? % ?????????????????????? | | ??????????????????????? ?????????????????????? | | ??????????????????????? ?????????????????????? | | ?????????????????????? ????????????????????? | | ?????????????????????? A ????????????????????? | | ??????????????????????? BB?????????????????????? | | ??????????????????????? B??????????????????????? | | ??????????????????????? ??????????????????????? | | ?????????????????????????????????????????????????? | | ?????????????????????????????????????????????????? | | ?????????????????????????????????????????????????? | | ?????????????????????????????????????????????????? | | ?????????????????????????????????????????????????? | | | | | | | | | +----------------------------------------------------+ Best States ------------- Heat Dissipation 68 Energy Generation 34 Energy Capacity 770 Matter Stores 450 Matter Capacity 450 Sight Range 16 Robot Scan Range 10 Terrain Scan Density 10 Jamming Range 12 Additional Mass Support 12 Base Temperature (-) 100 Resistance: KI 35 Resistance: TH 35 Resistance: EX 35 Resistance: EM 35 Resistance: I 35 Resistance: S 35 Resistance: P 35 Evasion (%) 57 Targeting Accuracy 8 Energy Filtering 30 Offensive Hacking 44 Item Schematics ----------------- Med. Storage Unit | -9/Materials | Scanalyzed Hacking Suite | -9/Materials | Scanalyzed Robot Schematics ------------------ B-48 Gladiator | -7/Factory | Downloaded Fabricated ------------ B-48 Gladiator | x3 | -5/Factory Alien Tech Used ----------------- None Achievements -------------- My Command Is Your Wish root@ Challenges ------------ None Game ------ Seed GravitonGravityStick Manual? 0 Play Time 01:42:02 Cumulative 17.7 hours Start 2020.10.21 @ 17:25:08 End 2020.10.21 @ 19:20:06 Sessions 1 Manual Loads 0 Difficulty Explorer Special Mode None Game No. 16 Rogue 6 Adventurer 2 Explorer 8 Win Type - Total 0 Types 0/0/0/0/0/0/0/0/0 Lore% 14 Gallery% 28 Achievement% 23 Wizard Run 0 Options --------- ASCII 0 Keyboard 0 Movement Mouse Keybinds 0 Fullscreen 1 Font 18/SmallcapsGlow Map View 76x50 Tactical HUD 1 Map Filters NONE Filters NONE Steam 1 RUN: 22f9d4da-10c7-4294-98a9-5571085c1712